bitfinex-derivatives/quotes_ETHF0:USTF0_20260120
["timestamp","ask_amount","ask_price","bid_price","bid_amount"]
[1768869691655,0.80175217,3191.3,3190.6,1.45221273]
[1768869691846,0.80175217,3191.2,3190.6,1.45221273]
[1768869692048,0.0027946,3191.5,3190.6,1.45221273]
[1768869692247,0.80186388,3191.4,3190.6,1.45221273]
[1768869692545,0.80186388,3191.3,3190.6,1.45221273]
[1768869692745,0.80186388,3191.2,3190.6,1.45221273]
[1768869692947,0.0027946,3191.5,3190.6,1.45221273]
[1768869693156,0.80200374,3191.4,3190.6,1.45221273]
[1768869693358,0.80200374,3191.3,3190.6,1.45221273]
[1768869693556,0.80200374,3191.2,3190.6,1.45221273]
[1768869693855,0.0027946,3191.5,3190.7,0.13852269]
[1768869694046,0.80207817,3191.4,3190.7,0.13852269]
[1768869694247,0.80207817,3191.3,3190.7,0.13852269]
[1768869694447,0.80207817,3191.2,3190.7,0.13852269]
[1768869694757,0.0027946,3191.5,3190.7,0.13852269]
[1768869694957,0.80219127,3191.4,3190.7,0.13852269]
[1768869695255,0.80219127,3191.3,3190.7,0.13852269]
[1768869695457,0.80219127,3191.2,3190.7,0.13852269]
[1768869695656,0.0027946,3191.5,3190.7,0.13852269]
[1768869695856,0.8011195,3191.4,3190.7,0.13852269]
[1768869696158,0.8011195,3191.3,3190.7,0.13852269]
[1768869696349,0.8011195,3191.2,3190.7,0.13852269]
[1768869696549,0.0027946,3191.5,3190.7,0.13852269]
[1768869696757,0.80112439,3191.4,3190.7,0.13852269]
[1768869696957,0.80112439,3191.3,3190.7,0.13852269]
[1768869697259,0.80112439,3191.2,3190.7,0.13852269]
[1768869697450,0.0027946,3191.5,3190.7,0.13852269]
[1768869697651,0.80516404,3191.4,3190.7,0.13852269]
[1768869697850,0.80516404,3191.3,3190.7,0.13852269]
[1768869698060,0.80516404,3191.2,3190.7,0.13852269]
[1768869698356,0.0027946,3191.5,3190.7,0.13852269]
[1768869698560,0.80516468,3191.4,3190.7,0.13852269]
[1768869698762,0.80516468,3191.3,3190.7,0.13852269]
[1768869698967,0.80516468,3191.2,3190.7,0.13852269]
[1768869699162,0.0027946,3191.5,3190.7,0.13852269]
[1768869699370,0.80516433,3191.4,3190.7,0.13852269]
[1768869699553,0.80516433,3191.3,3190.7,0.13852269]
[1768869699754,0.80516433,3191.2,3190.7,0.13852269]
[1768869699957,0.0027946,3191.5,3190.7,0.13852269]
[1768869700264,0.80516475,3191.4,3190.7,0.13852269]
[1768869700463,0.80516475,3191.3,3190.7,0.13852269]
[1768869700663,0.80516475,3191.2,3190.7,0.13852269]
[1768869700964,0.0027946,3191.5,3190.7,0.13852269]
[1768869701165,0.80516473,3191.4,3190.7,0.13852269]
[1768869701464,0.80516473,3191.3,3190.7,0.13852269]
[1768869701758,0.80516473,3191.2,3190.7,0.13852269]
[1768869702063,0.80516473,3191.1,3190.7,0.13852269]
[1768869702365,1.12645266,3191.5,3190.8,1.31120616]
[1768869703462,1.12645266,3191.5,3190.7,0.13852269]
[1768869706765,3.51384865,3191.4,3190.6,0.00248388]
[1768869707061,0.80516463,3191.3,3190.6,0.00248388]
[1768869707258,0.80516463,3191.2,3190.6,0.00248388]
[1768869707457,0.80516463,3191.1,3190.6,0.00248388]
[1768869707662,0.80516463,3191.0,3190.6,0.00248388]
[1768869707856,1.12365806,3191.4,3190.6,0.00248388]
[1768869708559,2.43486422,3191.4,3190.6,0.00248388]
[1768869708766,0.80724086,3191.3,3190.6,0.00248388]
[1768869708963,0.80724086,3191.2,3190.6,0.00248388]
[1768869709162,0.80724086,3191.1,3190.6,0.00248388]
[1768869709362,1.12365806,3191.4,3190.6,0.00248388]
[1768869709363,0.80724086,3191.0,3190.6,0.00248388]
[1768869709667,1.12365806,3191.4,3190.6,0.00248388]
[1768869711761,0.80718342,3191.3,3190.6,0.00248388]
[1768869712064,0.80718342,3191.3,3189.9,3.70437132]
[1768869712367,0.80824818,3191.2,3189.9,3.70437132]
[1768869712566,0.80824818,3191.1,3190.0,0.13776359]
[1768869712767,0.80824818,3191.0,3190.0,0.13776359]
[1768869712967,2.43486422,3191.4,3190.0,0.14022977]
[1768869713155,0.8082482,3191.3,3190.0,0.14022977]
[1768869713360,0.8082482,3191.2,3190.0,0.14022977]
[1768869713667,0.8082482,3191.1,3190.0,0.14022977]
[1768869713869,0.8082482,3191.0,3190.0,0.14022977]
[1768869714071,1.31120616,3191.3,3190.0,0.14022977]
[1768869714269,0.80820317,3191.2,3190.0,0.14022977]
[1768869714472,0.80820317,3191.1,3190.0,0.14022977]
[1768869714672,0.80820317,3191.0,3190.0,0.14022977]
[1768869714874,1.31120616,3191.3,3190.0,0.14022977]
[1768869715072,0.8081683,3191.2,3190.0,0.14022977]
[1768869715268,0.8081683,3191.1,3190.0,0.14022977]
[1768869715574,0.8081683,3191.0,3190.0,0.14022977]
[1768869715775,0.8081683,3190.9,3190.0,0.14022977]
[1768869715965,1.31120616,3191.1,3190.0,0.14022977]
[1768869716161,0.80815707,3191.0,3190.0,0.14022977]
[1768869716474,0.80815707,3190.9,3190.0,0.14022977]
[1768869716673,1.12365806,3191.3,3190.1,0.13742229]
[1768869716874,1.93170342,3191.3,3190.1,0.13742229]
[1768869721373,0.80804536,3191.2,3190.5,0.13742229]
[1768869721671,1.67119769,3191.5,3190.5,0.13742229]
[1768869721672,1.12645266,3191.5,3190.5,0.13742229]
[1768869721875,0.0027946,3191.5,3190.5,0.13742229]
[1768869727682,0.0027946,3191.5,3190.1,0.13742229]
[1768869733689,0.80513459,3191.4,3190.1,0.13742229]
[1768869733985,0.80513459,3191.3,3190.1,0.13742229]
[1768869734187,0.80513459,3191.2,3190.1,0.13742229]
[1768869734381,0.0027946,3191.5,3190.1,0.13742229]
[1768869734581,0.80514148,3191.4,3190.1,0.13742229]
[1768869734782,0.80514148,3191.3,3190.1,0.13742229]
[1768869735086,0.80514148,3191.2,3190.1,0.13742229]
[1768869735281,0.0027946,3191.5,3190.1,0.13742229]
[1768869735481,0.80514457,3191.4,3190.1,0.13742229]
[1768869735680,0.80514457,3191.3,3190.1,0.13742229]
[1768869735883,0.80514457,3191.2,3190.1,0.13742229]
[1768869736081,0.0027946,3191.5,3190.1,0.13742229]
[1768869736282,0.80515629,3191.4,3190.1,0.13742229]
[1768869736491,0.80515629,3191.3,3190.1,0.13742229]
[1768869736777,0.80515629,3191.2,3190.1,0.13742229]
[1768869736982,0.0027946,3191.5,3190.1,0.13742229]
[1768869737183,0.80515025,3191.4,3190.1,0.13742229]
[1768869737383,0.80515025,3191.3,3190.1,0.13742229]
[1768869737586,0.80515025,3191.2,3190.1,0.13742229]
[1768869737785,0.0027946,3191.5,3190.1,0.13742229]
[1768869738089,0.80515421,3191.4,3190.1,0.13742229]
[1768869738290,0.80515421,3191.3,3190.1,0.13742229]
[1768869738490,0.80515421,3191.2,3190.1,0.13742229]
[1768869738788,0.0027946,3191.5,3190.1,0.13742229]
[1768869738986,0.80515306,3191.4,3190.1,0.13742229]
[1768869739192,0.80515306,3191.3,3190.1,0.13742229]
[1768869739490,0.80515306,3191.2,3190.1,0.13742229]
[1768869739690,0.0027946,3191.5,3190.1,0.13742229]
[1768869739891,0.80515485,3191.4,3190.1,0.13742229]
[1768869740091,0.80515485,3191.3,3190.1,0.13742229]
[1768869740292,0.80515485,3191.2,3190.1,0.13742229]
[1768869740492,0.0027946,3191.5,3190.1,0.13742229]
[1768869740693,0.80515388,3191.4,3190.1,0.13742229]
[1768869740893,0.80515388,3191.3,3190.1,0.13742229]
[1768869741095,0.80515388,3191.2,3190.1,0.13742229]
[1768869741296,0.0027946,3191.5,3190.1,0.13742229]
[1768869741496,0.80515345,3191.4,3190.1,0.13742229]
[1768869741692,0.80515345,3191.3,3190.1,0.13742229]
[1768869741892,0.80515345,3191.2,3190.1,0.13742229]
[1768869742087,0.0027946,3191.5,3190.1,0.13742229]
[1768869742287,0.80516789,3191.4,3190.1,0.13742229]
[1768869742487,0.80516789,3191.3,3190.1,0.13742229]
[1768869742688,0.80516789,3191.2,3190.1,0.13742229]
[1768869742889,0.0027946,3191.5,3190.1,0.13742229]
[1768869743090,0.80516243,3191.4,3190.1,0.13742229]
[1768869743291,0.80516243,3191.3,3190.1,0.13742229]
[1768869743496,0.80516243,3191.2,3190.1,0.13742229]
[1768869743700,0.0027946,3191.5,3190.1,0.13742229]
[1768869743893,0.80517318,3191.4,3190.1,0.13742229]
[1768869744085,0.80517318,3191.3,3190.1,0.13742229]
[1768869744290,0.80517318,3191.2,3190.1,0.13742229]
[1768869744489,0.0027946,3191.5,3190.1,0.13742229]
[1768869744691,0.80518511,3191.4,3190.1,0.13742229]
[1768869744892,0.80518511,3191.3,3190.1,0.13742229]
[1768869745089,0.80518511,3191.2,3190.1,0.13742229]
[1768869745391,0.0027946,3191.5,3190.1,0.13742229]
[1768869745587,0.80520081,3191.4,3190.1,0.13742229]
[1768869745786,0.80520081,3191.3,3190.1,0.13742229]
[1768869746000,0.80520081,3191.2,3190.1,0.13742229]
[1768869746201,0.0027946,3191.5,3190.1,0.13742229]
[1768869746394,0.8055924,3191.4,3190.1,0.13742229]
[1768869746594,0.8055924,3191.3,3190.1,0.13742229]
[1768869746794,0.8055924,3191.2,3190.1,0.13742229]
[1768869746994,0.0027946,3191.5,3190.1,0.13742229]
[1768869747302,0.80559159,3191.4,3190.1,0.13742229]
[1768869747500,0.80559159,3191.3,3190.1,0.13742229]
[1768869747700,0.80559159,3191.2,3190.1,0.13742229]
[1768869747899,0.80559159,3191.1,3190.1,0.13742229]
[1768869748101,1.12645266,3191.5,3190.1,0.13742229]
[1768869755300,1.93216197,3191.5,3190.1,0.13742229]
[1768869755509,0.80570931,3191.4,3190.1,0.13742229]
[1768869755705,0.80570931,3191.3,3190.1,0.13742229]
[1768869755912,0.80570931,3191.2,3190.2,0.14120961]
[1768869756115,0.0027946,3191.5,3190.2,0.14120961]
[1768869756409,0.80767222,3191.4,3190.4,0.14120961]
[1768869756609,0.0027946,3191.5,3190.8,0.14120961]
[1768869756804,1.12365806,3191.9,3190.8,0.14120961]
[1768869757207,1.12365806,3192.0,3190.8,0.14120961]
[1768869757515,1.12365806,3192.1,3190.8,0.14120961]
[1768869757715,1.12365806,3192.0,3190.8,0.14120961]
[1768869758416,1.12641687,3192.1,3190.8,0.14120961]
[1768869762120,0.00275881,3192.1,3190.8,0.14120961]
[1768869765724,1.12365806,3192.3,3191.2,0.13369202]
[1768869766020,0.1567,3192.8,3191.6,0.13369202]
[1768869766021,1.12664797,3192.8,3191.6,0.13369202]
[1768869766218,1.66840309,3193.0,3191.6,0.13369202]
[1768869766610,2.38620355,3193.3,3191.1,1.31120902]
[1768869766611,1.66840309,3193.3,3192.2,1.44490104]
[1768869766924,0.00281273,3193.3,3192.3,0.13369202]
[1768869767116,0.00281273,3193.3,3192.3,0.13757452]
[1768869767719,0.00281273,3193.3,3192.3,0.0038825]
[1768869768223,0.00281273,3193.3,3192.4,0.13369202]
[1768869768821,0.00281273,3193.3,3192.4,1.44490104]
[1768869769026,0.15658,3195.2,3193.3,0.13369202]
[1768869769216,0.13177921,3195.0,3193.3,0.13369202]
[1768869769412,0.13177921,3194.7,3192.5,1.31120902]
[1768869769628,0.13177921,3194.5,3192.4,40.8]
[1768869769824,0.13177921,3194.3,3192.4,40.8]
[1768869770127,0.13177921,3194.1,3192.4,40.8]
[1768869770423,0.13177921,3194.1,3192.3,0.0038825]
[1768869771320,0.13177921,3194.1,3192.5,1.31120902]
[1768869772218,0.13177921,3194.1,3192.9,1.31120902]
[1768869773327,0.00404543,3194.3,3193.3,1.31120902]
[1768869773627,0.13833166,3195.2,3193.3,1.31120902]
[1768869773815,0.13833166,3194.8,3192.7,1.31120902]
[1768869774420,0.14224563,3194.8,3192.7,1.31120902]
[1768869775126,0.13833166,3194.4,3192.3,0.0038825]
[1768869775716,0.13833166,3194.4,3192.6,1.31120902]
[1768869778032,0.13833166,3194.4,3192.3,0.0038825]
[1768869779528,0.13833166,3194.4,3192.7,1.31120902]
[1768869782135,0.13833166,3194.4,3192.5,1.31120902]
[1768869783034,1.30882612,3194.2,3192.9,1.30882612]
[1768869783836,0.13833166,3193.7,3192.3,0.0038825]
[1768869784139,0.13833166,3193.5,3192.3,0.0038825]
[1768869784328,1.44715778,3193.4,3192.3,0.0038825]
[1768869784523,0.13833166,3193.3,3192.3,0.0038825]
[1768869784727,1.44715778,3193.2,3192.3,0.0038825]
[1768869784932,0.13833166,3193.1,3192.3,0.0038825]
[1768869790836,0.29500166,3193.5,3192.3,0.0038825]
[1768869791936,0.13833166,3193.4,3192.3,0.0038825]
[1768869795245,0.93821733,3193.3,3192.3,0.0038825]
[1768869795446,0.13833166,3193.3,3192.3,0.0038825]
[1768869797648,0.13833166,3193.1,3191.4,0.15677]
[1768869797835,0.13833166,3193.1,3191.1,2.24776442]
[1768869798040,0.13833166,3193.1,3191.2,40.8]
[1768869798645,0.13833166,3193.1,3191.2,40.8030074]
[1768869799648,0.13833166,3192.9,3191.2,40.8030074]
[1768869799948,0.13833166,3192.9,3191.2,0.0030074]
[1768869801749,0.13833166,3192.9,3191.2,0.00470547]
[1768869801934,0.13833166,3192.9,3191.4,1.88589189]
[1768869802346,0.13833166,3193.3,3191.4,1.88758996]
[1768869802542,0.13833166,3193.3,3191.5,0.00169807]
[1768869803046,0.13522444,3193.7,3191.9,1.88589189]
[1768869803242,0.13522444,3193.7,3191.9,1.88852112]
[1768869803944,0.13522444,3193.7,3192.0,0.00262923]
[1768869804342,0.13522444,3194.1,3192.0,0.00262923]
[1768869804648,0.13522444,3194.1,3191.9,2.04263189]
[1768869804649,0.13522444,3194.1,3192.4,1.88589189]
[1768869805942,0.13522444,3194.1,3192.5,40.8]
[1768869806144,0.13522444,3193.9,3192.5,40.8]
[1768869806949,0.13522444,3193.9,3192.1,2.24776442]
[1768869807248,0.13522444,3193.9,3192.0,2.40450442]
[1768869807444,0.13522444,3193.9,3192.1,40.8]
[1768869808244,0.93588443,3193.8,3192.1,40.8]
[1768869808445,0.13522444,3193.8,3192.1,40.8]
[1768869812352,0.13522444,3193.8,3192.1,43.04924213]
[1768869812658,0.29185444,3194.2,3192.3,1.88589189]
[1768869812847,0.80114274,3194.1,3192.3,4.13365631]
[1768869813156,0.80114274,3194.0,3192.3,4.13513402]
[1768869813358,0.29185444,3194.2,3192.4,0.00147771]
[1768869813555,0.80122505,3194.1,3192.4,0.00147771]
[1768869813750,0.80122505,3194.0,3192.4,0.00147771]
[1768869813952,0.29185444,3194.2,3192.4,0.00147771]
[1768869814158,0.80122483,3194.1,3192.4,0.00147771]
[1768869814357,0.80122483,3194.0,3192.4,0.00147771]
[1768869814659,0.29185444,3194.2,3192.4,0.00147771]
[1768869814957,0.93639055,3194.1,3192.4,0.00147771]
[1768869815151,0.93639055,3194.0,3192.4,0.00147771]
[1768869815448,0.13522444,3194.0,3192.4,0.00147771]
[1768869818858,0.13522444,3194.0,3193.0,1.30872997]
[1768869819256,0.13522444,3194.0,3193.2,1.30872997]
[1768869819456,0.13522444,3194.0,3193.0,1.30872997]
[1768869822458,0.13522444,3194.0,3193.2,1.30872997]
[1768869824562,1.44127624,3193.7,3192.3,2.24776442]
[1768869824768,1.12310721,3194.5,3192.2,6.51573]
[1768869824769,1.44127624,3193.5,3192.2,3.71322439]
[1768869824954,0.13254627,3193.5,3192.4,1.30872997]
[1768869825355,0.13254627,3194.2,3193.0,1.30872997]
[1768869825557,0.13254627,3194.2,3192.2,2.40449442]
[1768869825558,0.93236513,3194.1,3193.4,1.30872997]
[1768869825758,0.13254627,3194.1,3193.4,1.30872997]
[1768869826352,0.13254627,3194.1,3193.2,1.30872997]
[1768869826562,0.13254627,3194.1,3193.0,1.30872997]
[1768869827868,0.13254627,3194.1,3193.1,1.30872997]
[1768869828468,0.13254627,3194.1,3193.3,1.30872997]
[1768869828766,0.13254627,3194.1,3193.5,1.30872997]
[1768869828962,0.13254627,3194.1,3193.5,0.00220881]
[1768869831365,0.13254627,3194.1,3193.0,1.30872997]
[1768869831966,0.13254627,3194.1,3192.7,2.24776442]
[1768869831967,0.13254627,3194.1,3193.2,1.30872997]
[1768869832469,0.13254627,3194.1,3193.2,1.31196342]
[1768869835371,0.13254627,3194.1,3193.4,1.30872997]
[1768869836065,0.13254627,3194.1,3193.2,0.00323345]
[1768869836271,0.13254627,3194.1,3193.3,1.30872997]
[1768869837175,0.13254627,3194.1,3193.2,0.00323345]
[1768869839073,0.13254627,3194.1,3193.2,1.31196342]
[1768869839274,0.13254627,3194.1,3193.2,0.00323345]
[1768869839475,0.13254627,3194.1,3193.3,1.30872997]
[1768869840372,0.13254627,3194.1,3193.2,0.00323345]
[1768869840565,0.94052287,3194.0,3193.2,0.00323345]
[1768869840767,0.13897572,3194.0,3193.2,0.00323345]
[1768869841777,0.80164713,3193.9,3193.2,0.00323345]
[1768869841970,0.13897572,3194.0,3193.2,0.00323345]
[1768869842169,0.13897572,3193.8,3193.2,0.00323345]
[1768869842374,0.94079856,3193.7,3192.4,2.24776442]
[1768869842676,0.13897572,3193.5,3192.5,1.30872997]
[1768869842971,0.13897572,3193.5,3192.2,2.24776442]
[1768869843177,0.13897572,3193.5,3192.1,3.55688062]
[1768869843380,0.13897572,3193.5,3192.1,3.56076369]
[1768869845069,0.13897572,3193.3,3192.1,0.00388307]
[1768869845264,1.3091162,3194.0,3192.1,0.00388307]
[1768869845265,0.13897572,3193.1,3192.1,0.00388307]
[1768869847381,0.13897572,3192.9,3192.1,0.00388307]
[1768869852876,0.13897572,3192.9,3191.3,2.24776442]
[1768869853985,0.13897572,3192.9,3191.3,2.25166025]
[1768869854182,0.13897572,3192.9,3191.3,0.00389583]
[1768869857292,0.29564572,3193.4,3191.4,0.01252777]
[1768869857786,0.29564572,3193.4,3191.5,0.01252777]
[1768869858890,0.29564572,3193.4,3191.7,0.0114521]
[1768869859399,0.13897572,3193.4,3191.7,0.0114521]
[1768869859595,0.13897572,3193.4,3191.8,0.0114521]
[1768869860694,0.13897572,3193.4,3191.6,43.20452442]
[1768869860893,0.29564572,3193.4,3191.5,2.24776442]
[1768869861098,0.13897572,3193.3,3191.5,2.24776442]
[1768869861999,0.13897572,3193.3,3191.5,43.04776442]
[1768869862299,0.13897572,3193.3,3191.5,43.06012491]
[1768869863601,0.13897572,3193.3,3191.5,43.21688491]
[1768869864110,0.13897572,3193.3,3191.6,2.24776442]
[1768869864606,0.13897572,3193.3,3191.6,2.40452442]
[1768869867008,0.13897572,3193.3,3192.2,1.30935654]
[1768869868802,0.13897572,3193.3,3191.9,1.30935654]
[1768869869008,0.13897572,3193.3,3191.8,3.55712096]
[1768869869208,0.13897572,3193.3,3191.9,2.24776442]
[1768869871209,0.13897572,3193.3,3191.8,3.55712096]
[1768869871509,0.13897572,3193.3,3191.9,2.24776442]
[1768869874515,0.80336226,3193.2,3191.8,2.24776442]
[1768869874711,0.15667,3193.4,3191.5,40.8]
[1768869874712,0.13705187,3193.0,3191.6,2.24776442]
[1768869874918,0.13705187,3192.8,3191.5,2.24776442]
[1768869875515,0.13705187,3192.8,3191.3,0.00389583]
[1768869876017,0.13705187,3192.8,3191.4,40.8]
[1768869876921,0.13705187,3192.8,3191.3,0.00389583]
[1768869877516,0.13705187,3192.8,3191.3,40.80389583]
[1768869880520,0.13705187,3192.8,3191.3,0.00389583]
[1768869890219,0.13704515,3192.6,3191.3,0.00389583]
[1768869890923,0.13704515,3192.4,3191.3,0.00389583]
[1768869891117,0.13988088,3192.4,3191.3,0.00389583]
[1768869891513,0.13704515,3192.2,3191.3,0.00389583]
[1768869892318,0.13704515,3192.2,3190.6,40.8]
[1768869893131,0.13704515,3192.2,3190.6,40.80363167]
[1768869893425,0.13704515,3192.2,3190.6,0.00363167]
[1768869894930,0.13704515,3192.2,3190.8,1.31020792]
[1768869900829,0.13704515,3192.2,3191.2,1.31020792]
[1768869901522,0.00283573,3192.4,3191.2,1.31020792]
[1768869901730,0.00283573,3192.4,3191.0,1.31020792]
[1768869901924,0.00283573,3192.4,3190.6,0.00363167]
[1768869901925,0.14107979,3192.2,3190.6,0.00363167]
[1768869904937,0.14107979,3192.2,3191.0,1.31044244]
[1768869906833,0.14107979,3191.9,3190.6,0.00363167]
[1768869907040,0.14107979,3191.7,3190.6,0.00363167]
[1768869909026,0.14107979,3191.7,3190.9,1.31044244]
[1768869909229,0.14107979,3191.7,3190.6,0.00363167]
[1768869909230,0.14107979,3192.2,3191.3,1.31044244]
[1768869909429,0.81365188,3192.1,3191.3,1.31044244]
[1768869909629,0.81365188,3192.0,3191.3,1.31044244]
[1768869909826,0.14107979,3192.2,3191.3,1.31044244]
[1768869910031,0.8136077,3192.1,3191.3,1.31044244]
[1768869910232,0.00283573,3192.4,3191.7,1.31044244]
[1768869910441,0.8136264,3192.3,3191.7,1.31044244]
[1768869910634,0.00283573,3192.4,3191.5,1.31044244]
[1768869911340,0.14107979,3192.3,3191.3,1.31044244]
[1768869911536,0.14107979,3192.3,3191.1,1.31044244]
[1768869911842,0.14107979,3192.2,3190.9,1.31044244]
[1768869912041,0.14107979,3192.2,3191.1,1.31044244]
[1768869915445,0.14107979,3192.2,3191.3,1.31044244]
[1768869917347,0.14107979,3192.2,3191.1,1.31044244]
[1768869918549,0.14107979,3192.2,3190.6,0.00363167]
[1768869918751,0.81466496,3192.1,3191.0,1.31044244]
[1768869918946,0.14107979,3192.2,3191.0,1.31044244]
[1768869919147,0.81466489,3192.1,3191.0,1.31044244]
[1768869919348,0.14107979,3192.2,3191.0,1.31044244]
[1768869919547,0.81492107,3192.1,3191.0,1.31044244]
[1768869919846,0.14107979,3192.2,3190.6,0.00363167]
[1768869920039,0.14107979,3192.0,3191.1,1.31044244]
[1768869921149,0.14391552,3192.4,3191.3,1.31044244]
[1768869921347,0.81523686,3192.3,3191.5,1.31044244]
[1768869921648,0.81523686,3192.2,3191.5,1.31044244]
[1768869921854,0.81523686,3192.1,3191.5,1.31044244]
[1768869922041,0.14391552,3192.4,3191.5,1.31044244]
[1768869922349,0.81521095,3192.3,3191.5,1.31044244]
[1768869922548,0.81521095,3192.2,3191.5,1.31044244]
[1768869922751,0.81521095,3192.1,3191.3,1.31044244]
[1768869922952,0.14391552,3192.4,3191.3,1.31044244]
[1768869923147,0.81522399,3192.3,3191.3,1.31044244]
[1768869923350,0.81522399,3192.2,3191.3,1.31044244]
[1768869923643,0.81522399,3192.1,3191.3,1.31044244]
[1768869923846,0.14391552,3192.4,3191.5,1.31044244]
[1768869924046,0.81522249,3192.3,3191.5,1.31044244]
[1768869924351,0.81522249,3192.2,3191.5,1.31044244]
[1768869924652,0.14391552,3192.4,3191.5,1.31044244]
[1768869924853,0.81521379,3192.3,3191.5,1.31044244]
[1768869925054,0.81521379,3192.2,3191.5,1.31044244]
[1768869925253,0.14391552,3192.4,3191.5,1.31044244]
[1768869925453,0.81520886,3192.3,3191.5,1.31044244]
[1768869925646,0.81520886,3192.2,3191.5,1.31044244]
[1768869925846,0.14391552,3192.4,3191.5,1.31044244]
[1768869926055,0.81518604,3192.3,3191.5,1.31044244]
[1768869926254,0.81518604,3192.2,3191.5,1.31044244]
[1768869926450,0.14391552,3192.4,3191.5,1.31044244]
[1768869926451,0.00283573,3192.4,3191.5,1.31044244]
[1768869926652,0.81516525,3192.3,3191.5,1.31044244]
[1768869926855,0.81516525,3192.2,3191.5,1.31044244]
[1768869927149,0.00283573,3192.4,3191.5,1.31044244]
[1768869927350,0.81514685,3192.3,3191.5,1.31044244]
[1768869927554,0.81514685,3192.2,3191.7,1.31044244]
[1768869927747,0.00283573,3192.4,3191.7,1.31044244]
[1768869927951,0.81513571,3192.3,3191.7,1.31044244]
[1768869928152,0.00283573,3192.4,3191.7,1.31044244]
[1768869928451,0.3137,3196.0,3190.7,2.95629008]
[1768869928452,2.93437544,3193.2,3192.3,1.31044244]
[1768869928657,0.13344309,3193.1,3191.9,1.31044244]
[1768869929549,0.13608126,3193.1,3192.1,1.31044244]
[1768869931459,0.13608126,3193.1,3191.4,40.81833092]
[1768869931647,0.13608126,3193.1,3192.0,1.31044244]
[1768869934457,0.13608126,3193.1,3192.2,1.31044244]
[1768869935046,0.13608126,3193.1,3192.0,1.31044244]
[1768869936058,0.13608126,3193.1,3191.8,1.31044244]
[1768869937154,0.13608126,3193.1,3192.0,1.31044244]
[1768869937556,0.13608126,3193.1,3192.2,1.31044244]
[1768869937753,0.00263817,3193.1,3192.4,1.31044244]
[1768869938752,0.00263817,3193.1,3192.0,1.31044244]
[1768869939065,0.00263817,3193.1,3192.4,1.31044244]
[1768869939358,0.00263817,3193.1,3191.8,0.01858002]
[1768869939552,0.00263817,3193.1,3192.1,1.31044244]
[1768869940458,0.80905817,3193.0,3191.9,1.31044244]
[1768869940660,0.00263817,3193.1,3191.9,1.31044244]
[1768869940851,0.80906071,3193.0,3191.9,1.31044244]
[1768869941056,0.00263817,3193.1,3192.1,1.31044244]
[1768869941254,0.81374216,3193.0,3192.1,1.31044244]
[1768869941455,0.00263817,3193.1,3192.1,1.31044244]
[1768869941758,0.81364834,3193.0,3192.0,1.31044244]
[1768869942059,0.00263817,3193.1,3191.4,0.17594904]
[1768869942255,0.14699281,3193.1,3192.0,1.31044244]
[1768869942560,1.45743525,3193.1,3191.8,1.31044244]
[1768869943549,1.45743525,3193.1,3191.7,1.31044244]
[1768869943750,0.14699281,3193.1,3191.7,1.31044244]
[1768869943957,0.14699281,3193.1,3191.9,1.31044244]
[1768869945460,0.14699281,3193.1,3192.1,1.31044244]
[1768869946367,0.00263817,3193.1,3192.1,1.31044244]
[1768869946568,0.00263817,3193.1,3192.3,1.31044244]
[1768869946766,0.00263817,3193.1,3192.5,1.31044244]
[1768869946964,0.00263817,3193.1,3192.3,1.31044244]
[1768869948669,0.00263817,3193.1,3192.5,1.31044244]
[1768869950064,1.12310721,3193.8,3192.7,1.31044244]
[1768869950659,1.93675602,3193.8,3192.7,1.31044244]
[1768869950965,1.93960472,3193.8,3192.7,1.31044244]
[1768869951164,0.81364881,3193.7,3192.7,1.31044244]
[1768869951365,0.81364881,3193.6,3192.7,1.31044244]
[1768869951567,0.81364881,3193.5,3192.7,1.31044244]
[1768869951763,0.0028487,3193.8,3192.7,1.31044244]
[1768869951967,1.45479708,3193.5,3191.7,0.17657883]
[1768869952266,1.31044244,3193.3,3192.0,1.31044244]
[1768869952466,1.45479708,3193.5,3192.0,1.31044244]
[1768869952665,0.81372379,3193.4,3192.2,1.31044244]
[1768869952862,0.1393638,3193.4,3192.2,1.31044244]
[1768869953068,1.31044244,3193.1,3191.8,1.31044244]
[1768869953566,0.1393638,3193.2,3192.0,1.31044244]
[1768869953767,0.81395281,3193.1,3192.0,1.31044244]
[1768869953962,0.1393638,3193.2,3191.7,0.01982883]
[1768869954163,2.12439923,3193.1,3191.8,1.31044244]
[1768869954362,1.31044244,3193.1,3191.8,1.31044244]
[1768869954763,0.1393638,3193.2,3191.8,1.31044244]
[1768869954959,0.81413732,3193.1,3191.8,1.31044244]
[1768869955165,0.1393638,3193.2,3191.8,1.31044244]
[1768869955474,0.8141392,3193.1,3191.8,1.31044244]
[1768869955775,0.1393638,3193.2,3191.8,1.31044244]
[1768869956072,0.81435123,3193.1,3191.8,1.31044244]
[1768869956272,0.1393638,3193.2,3191.8,1.31044244]
[1768869956476,0.81459198,3193.1,3191.8,1.31044244]
[1768869956663,0.81459198,3193.0,3191.8,1.31044244]
[1768869956863,0.1393638,3193.2,3191.8,1.31044244]
[1768869957072,0.81459198,3193.1,3191.8,1.31044244]
[1768869957375,0.1393638,3193.2,3192.0,1.31044244]
[1768869957376,0.81459198,3193.0,3192.0,1.31044244]
[1768869957671,0.1393638,3193.2,3192.0,1.31044244]
[1768869957879,0.81487777,3193.1,3192.0,1.31044244]
[1768869958073,0.81487777,3193.0,3192.0,1.31044244]
[1768869958378,0.1393638,3193.2,3192.0,1.31044244]
[1768869958576,0.81519378,3193.1,3192.0,1.31044244]
[1768869958766,0.81519378,3193.0,3192.0,1.31044244]
[1768869958961,0.1393638,3193.2,3191.9,1.31044244]
[1768869959167,0.81519395,3193.1,3191.9,1.31044244]
[1768869959464,0.81519395,3193.0,3191.9,1.31044244]
[1768869959660,2.26500019,3192.9,3191.3,3.77539246]
[1768869959874,1.31044244,3192.7,3191.3,2.28634482]
[1768869960073,0.95463631,3192.8,3191.3,2.28634482]
[1768869960074,1.31044244,3192.5,3191.3,0.97590238]
[1768869960273,0.81531212,3192.4,3191.3,0.97590238]
[1768869960476,1.31044244,3192.5,3191.3,0.97590238]
[1768869960671,0.81532066,3192.4,3191.3,0.97590238]
[1768869960878,1.31044244,3192.5,3190.9,1.32901688]
[1768869960879,2.12577599,3192.3,3190.9,1.32901688]
[1768869961076,1.44980624,3192.5,3190.9,1.32901688]
[1768869961275,0.81533535,3192.4,3191.1,1.31044244]
[1768869961476,0.81533535,3192.3,3191.1,1.31044244]
[1768869961668,1.31044244,3192.3,3190.7,3.8809606]
[1768869961869,0.81504316,3192.2,3190.8,1.31044244]
[1768869962075,0.81504316,3192.1,3190.8,1.31044244]
[1768869962276,0.1393638,3192.2,3190.8,1.31044244]
[1768869963481,0.81436362,3192.1,3190.8,1.31044244]
[1768869963778,0.1393638,3192.2,3190.8,1.31044244]
[1768869963969,0.81436528,3192.1,3190.8,1.31044244]
[1768869964173,0.1393638,3192.2,3190.8,1.31044244]
[1768869965678,1.31044244,3191.9,3190.6,1.31407411]
[1768869966379,0.1393638,3192.0,3190.8,1.31044244]
[1768869966880,0.1393638,3192.0,3190.6,0.00363167]
[1768869970585,0.1393638,3191.8,3190.6,0.00363167]
[1768869970785,0.1393638,3191.6,3190.6,0.00363167]
[1768869979086,0.15674,3191.9,3189.2,0.01892657]